[Event "Titled Tuesday Blitz April 11 Late 2023"]
[White "Deac, Bogdan-Daniel"]
[Black "Makarian, Rudik"]
[WhiteFideId "1226380"]
[BlackFideId "44105681"]
[WhiteElo "2649"]
[BlackElo "2430"]
[Result "0-1"]
[Round "11"]
[TimeControl "180+2"]
[Date "2023.04.11"]
[WhiteClock "0:00:07"]
[BlackClock "0:00:12"]

1. d4 {[%clk 0:03:00]}  Nf6 {[%clk 0:02:58]} 2. Bf4 {[%clk 0:02:58]}  c5 {[%clk 0:02:58]} 3. d5 {[%clk 0:02:47]}  b5 {[%clk 0:02:54]} 4. c4 {[%clk 0:02:45]}  b4 {[%clk 0:02:54]} 5. Qc2 {[%clk 0:02:41]}  g6 {[%clk 0:02:53]} 6. e4 {[%clk 0:02:41]}  Bg7 {[%clk 0:02:53]} 7. Bd3 {[%clk 0:02:41]}  O-O {[%clk 0:02:53]} 8. Nf3 {[%clk 0:02:41]}  d6 {[%clk 0:02:49]} 9. h3 {[%clk 0:02:40]}  a5 {[%clk 0:02:50]} 10. Nbd2 {[%clk 0:02:38]}  a4 {[%clk 0:02:50]} 11. Rb1 {[%clk 0:02:36]}  e5 {[%clk 0:02:41]} 12. dxe6 {[%clk 0:01:49]}  Bxe6 {[%clk 0:02:41]} 13. O-O {[%clk 0:01:49]}  Nc6 {[%clk 0:02:41]} 14. Rfe1 {[%clk 0:01:49]}  b3 {[%clk 0:02:25]} 15. Qc1 {[%clk 0:01:31]}  Nb4 {[%clk 0:02:23]} 16. Bf1 {[%clk 0:01:30]}  bxa2 {[%clk 0:02:16]} 17. Ra1 {[%clk 0:01:30]}  Qb6 {[%clk 0:02:17]} 18. e5 {[%clk 0:01:26]}  dxe5 {[%clk 0:02:15]} 19. Bxe5 {[%clk 0:01:26]}  Rfd8 {[%clk 0:02:12]} 20. Qc3 {[%clk 0:01:21]}  Bf5 {[%clk 0:02:00]} 21. g4 {[%clk 0:01:09]}  Bd3 {[%clk 0:01:49]} 22. g5 {[%clk 0:00:45]}  Nh5 {[%clk 0:01:20]} 23. Bxg7 {[%clk 0:00:43]}  Nxg7 {[%clk 0:01:21]} 24. Ne5 {[%clk 0:00:44]}  Bxf1 {[%clk 0:01:17]} 25. Kxf1 {[%clk 0:00:40]}  Rd4 {[%clk 0:01:05]} 26. Ne4 {[%clk 0:00:38]}  Nh5 {[%clk 0:00:55]} 27. Ng4 {[%clk 0:00:20]}  h6 {[%clk 0:00:37]} 28. Nxh6+ {[%clk 0:00:14]}  Kh7 {[%clk 0:00:37]} 29. Qf3 {[%clk 0:00:14]}  Rf8 {[%clk 0:00:36]} 30. Re2 {[%clk 0:00:09]}  Qd8 {[%clk 0:00:28]} 31. Kg2 {[%clk 0:00:02]}  Rxe4 {[%clk 0:00:22]} 32. Qxe4 {[%clk 0:00:02]}  Qxg5+ {[%clk 0:00:22]} 33. Ng4 {[%clk 0:00:02]}  Nf4+ {[%clk 0:00:22]} 34. Kf1 {[%clk 0:00:03]}  Nxe2 {[%clk 0:00:22]} 35. Qxe2 {[%clk 0:00:04]}  Kg7 {[%clk 0:00:18]} 36. Qf3 {[%clk 0:00:04]}  Re8 {[%clk 0:00:16]} 37. Qc3+ {[%clk 0:00:04]}  f6 {[%clk 0:00:16]} 38. Qf3 {[%clk 0:00:04]}  Re7 {[%clk 0:00:16]} 39. Qa8 {[%clk 0:00:03]}  Qf5 {[%clk 0:00:14]} 40. Kg2 {[%clk 0:00:03]}  Qe4+ {[%clk 0:00:12]} 41. Qxe4 {[%clk 0:00:03]}  Rxe4 {[%clk 0:00:13]} 42. Ne3 {[%clk 0:00:04]}  Rd4 {[%clk 0:00:12]} 43. Nd5 {[%clk 0:00:05]}  Rxc4 {[%clk 0:00:12]} 44. Nxb4 {[%clk 0:00:05]}  cxb4 {[%clk 0:00:12]} 45. Rxa2 {[%clk 0:00:05]}  b3 {[%clk 0:00:12]} 46. Ra1 {[%clk 0:00:06]}  f5 {[%clk 0:00:12]} 47. Kf3 {[%clk 0:00:06]}  Kf6 {[%clk 0:00:13]} 48. Ke3 {[%clk 0:00:06]}  Rh4 {[%clk 0:00:12]} 49. f3 {[%clk 0:00:06]}  Ke5 {[%clk 0:00:12]} 50. Kf2 {[%clk 0:00:05]}  Rc4 {[%clk 0:00:10]} 51. Ke3 {[%clk 0:00:05]}  g5 {[%clk 0:00:09]} 52. Kd3 {[%clk 0:00:04]}  Rh4 {[%clk 0:00:10]} 53. Ke2 {[%clk 0:00:05]}  Rxh3 {[%clk 0:00:10]} 54. Rxa4 {[%clk 0:00:04]}  Rh2+ {[%clk 0:00:11]} 55. Ke3 {[%clk 0:00:05]}  f4+ {[%clk 0:00:11]} 56. Kd3 {[%clk 0:00:05]}  Rxb2 {[%clk 0:00:11]} 57. Ra5+ {[%clk 0:00:05]}  Kf6 {[%clk 0:00:12]} 58. Ra6+ {[%clk 0:00:06]}  Kf5 {[%clk 0:00:12]} 59. Ra5+ {[%clk 0:00:06]}  Kg6 {[%clk 0:00:12]} 60. Rb5 {[%clk 0:00:07]}  Rf2 {[%clk 0:00:11]} 61. Ke4 {[%clk 0:00:07]}  Re2+ {[%clk 0:00:11]} 62. Kd4 {[%clk 0:00:07]}  Re3 {[%clk 0:00:12]} 0-1


[Site "https://www.chess.com"]

[Event "Titled Tuesday Blitz April 11 Late 2023"]
[White "Mammadov, Zaur"]
[Black "Martinez Alcantara, Jose Eduardo"]
[WhiteFideId "13401033"]
[BlackFideId "3805662"]
[WhiteElo "2441"]
[BlackElo "2711"]
[Result "1/2-1/2"]
[Round "11"]
[TimeControl "180+2"]
[Date "2023.04.11"]
[WhiteClock "0:00:20"]
[BlackClock "0:00:35"]

1. e4 {[%clk 0:03:00]}  c5 {[%clk 0:03:00]} 2. c3 {[%clk 0:03:01]}  e6 {[%clk 0:02:59]} 3. d4 {[%clk 0:03:00]}  d5 {[%clk 0:03:00]} 4. e5 {[%clk 0:03:00]}  Nc6 {[%clk 0:03:00]} 5. Nf3 {[%clk 0:03:01]}  Qb6 {[%clk 0:03:01]} 6. Na3 {[%clk 0:03:01]}  Bd7 {[%clk 0:02:59]} 7. Nc2 {[%clk 0:03:00]}  cxd4 {[%clk 0:02:59]} 8. cxd4 {[%clk 0:03:00]}  Rc8 {[%clk 0:02:59]} 9. Bd3 {[%clk 0:03:00]}  Nb4 {[%clk 0:02:57]} 10. Nxb4 {[%clk 0:03:00]}  Bxb4+ {[%clk 0:02:58]} 11. Kf1 {[%clk 0:03:00]}  Bb5 {[%clk 0:02:56]} 12. g3 {[%clk 0:03:00]}  h6 {[%clk 0:02:55]} 13. Kg2 {[%clk 0:03:00]}  Bxd3 {[%clk 0:02:50]} 14. Qxd3 {[%clk 0:03:00]}  Qa6 {[%clk 0:02:47]} 15. Qd1 {[%clk 0:02:52]}  Ne7 {[%clk 0:02:43]} 16. a3 {[%clk 0:02:51]}  Ba5 {[%clk 0:02:37]} 17. h4 {[%clk 0:02:51]}  Qb5 {[%clk 0:02:31]} 18. b4 {[%clk 0:02:50]}  Bb6 {[%clk 0:02:29]} 19. h5 {[%clk 0:02:48]}  a6 {[%clk 0:02:28]} 20. g4 {[%clk 0:02:46]}  Kd7 {[%clk 0:02:27]} 21. Be3 {[%clk 0:02:46]}  Rc3 {[%clk 0:02:15]} 22. Qd2 {[%clk 0:01:57]}  Qd3 {[%clk 0:02:02]} 23. Qxd3 {[%clk 0:01:47]}  Rxd3 {[%clk 0:02:02]} 24. Rhc1 {[%clk 0:01:47]}  Nc6 {[%clk 0:01:57]} 25. Rd1 {[%clk 0:01:43]}  Rc3 {[%clk 0:01:53]} 26. Rdc1 {[%clk 0:01:38]}  Rd3 {[%clk 0:01:52]} 27. Rd1 {[%clk 0:01:38]}  Rb3 {[%clk 0:01:50]} 28. Rdb1 {[%clk 0:01:34]}  Rxb1 {[%clk 0:01:50]} 29. Rxb1 {[%clk 0:01:35]}  Bd8 {[%clk 0:01:46]} 30. Kf1 {[%clk 0:01:32]}  Be7 {[%clk 0:01:45]} 31. Ke2 {[%clk 0:01:33]}  Rc8 {[%clk 0:01:42]} 32. Kd3 {[%clk 0:01:26]}  b5 {[%clk 0:01:34]} 33. Nd2 {[%clk 0:01:23]}  Ra8 {[%clk 0:01:21]} 34. Nb3 {[%clk 0:01:02]}  a5 {[%clk 0:01:21]} 35. Nc5+ {[%clk 0:01:02]}  Kc7 {[%clk 0:01:20]} 36. f4 {[%clk 0:00:27]}  axb4 {[%clk 0:01:20]} 37. axb4 {[%clk 0:00:28]}  Ra3+ {[%clk 0:01:16]} 38. Ke2 {[%clk 0:00:28]}  Ra2+ {[%clk 0:01:09]} 39. Kf3 {[%clk 0:00:26]}  Ra3 {[%clk 0:01:05]} 40. Ke2 {[%clk 0:00:25]}  Kb6 {[%clk 0:00:38]} 41. Nd7+ {[%clk 0:00:20]}  Kc7 {[%clk 0:00:35]} 42. Nc5 {[%clk 0:00:20]} 1/2-1/2


[Site "https://www.chess.com"]

[Event "Titled Tuesday Blitz April 11 Late 2023"]
[White "Rustemov, Alexander"]
[Black "Grigoriants, Sergey"]
[WhiteFideId "4119002"]
[BlackFideId "4130804"]
[WhiteElo "2525"]
[BlackElo "2502"]
[Result "0-1"]
[Round "11"]
[TimeControl "180+2"]
[Date "2023.04.11"]
[WhiteClock "0:00:01"]
[BlackClock "0:00:06"]

1. d4 {[%clk 0:03:00]}  Nf6 {[%clk 0:02:59]} 2. c4 {[%clk 0:03:01]}  e6 {[%clk 0:02:59]} 3. Nf3 {[%clk 0:03:01]}  d5 {[%clk 0:02:59]} 4. cxd5 {[%clk 0:02:59]}  exd5 {[%clk 0:02:58]} 5. Nc3 {[%clk 0:02:59]}  c6 {[%clk 0:02:56]} 6. Bf4 {[%clk 0:02:57]}  Bf5 {[%clk 0:02:51]} 7. e3 {[%clk 0:02:56]}  Bd6 {[%clk 0:02:49]} 8. Bxd6 {[%clk 0:02:52]}  Qxd6 {[%clk 0:02:48]} 9. Nh4 {[%clk 0:02:41]}  Bg4 {[%clk 0:02:44]} 10. Qb3 {[%clk 0:02:35]}  Qe7 {[%clk 0:02:35]} 11. h3 {[%clk 0:02:33]}  Be6 {[%clk 0:02:25]} 12. Bd3 {[%clk 0:02:32]}  O-O {[%clk 0:02:18]} 13. O-O {[%clk 0:02:27]}  c5 {[%clk 0:02:12]} 14. Qa3 {[%clk 0:02:22]}  b6 {[%clk 0:02:04]} 15. Nf3 {[%clk 0:02:18]}  Nc6 {[%clk 0:01:52]} 16. dxc5 {[%clk 0:02:16]}  bxc5 {[%clk 0:01:51]} 17. Rfc1 {[%clk 0:02:06]}  Rab8 {[%clk 0:01:36]} 18. Na4 {[%clk 0:02:05]}  c4 {[%clk 0:01:33]} 19. Qxe7 {[%clk 0:02:04]}  Nxe7 {[%clk 0:01:33]} 20. Bc2 {[%clk 0:01:58]}  Bd7 {[%clk 0:01:18]} 21. Rab1 {[%clk 0:01:53]}  Bxa4 {[%clk 0:01:15]} 22. Bxa4 {[%clk 0:01:52]}  Rfc8 {[%clk 0:01:16]} 23. Nd4 {[%clk 0:01:49]}  Ne4 {[%clk 0:01:13]} 24. b3 {[%clk 0:01:39]}  Nc5 {[%clk 0:01:13]} 25. Kf1 {[%clk 0:01:30]}  g6 {[%clk 0:01:11]} 26. Ke2 {[%clk 0:01:29]}  Rb6 {[%clk 0:01:06]} 27. g4 {[%clk 0:01:14]}  Rcb8 {[%clk 0:01:05]} 28. Ra1 {[%clk 0:01:09]}  Kg7 {[%clk 0:00:58]} 29. Rc2 {[%clk 0:01:03]}  Nxa4 {[%clk 0:00:49]} 30. bxa4 {[%clk 0:01:03]}  Ra6 {[%clk 0:00:49]} 31. Rd1 {[%clk 0:00:57]}  Rxa4 {[%clk 0:00:49]} 32. Kf3 {[%clk 0:00:58]}  Rb6 {[%clk 0:00:49]} 33. Ne2 {[%clk 0:00:58]}  Rab4 {[%clk 0:00:43]} 34. Nc3 {[%clk 0:00:56]}  Rb2 {[%clk 0:00:42]} 35. Rdd2 {[%clk 0:00:45]}  Rxc2 {[%clk 0:00:41]} 36. Rxc2 {[%clk 0:00:45]}  Kf6 {[%clk 0:00:41]} 37. Rd2 {[%clk 0:00:40]}  Ke5 {[%clk 0:00:40]} 38. Ke2 {[%clk 0:00:34]}  g5 {[%clk 0:00:38]} 39. Kf3 {[%clk 0:00:30]}  a5 {[%clk 0:00:35]} 40. Kg3 {[%clk 0:00:29]}  f5 {[%clk 0:00:32]} 41. h4 {[%clk 0:00:24]}  gxh4+ {[%clk 0:00:20]} 42. Kxh4 {[%clk 0:00:24]}  f4 {[%clk 0:00:14]} 43. Kh5 {[%clk 0:00:17]}  fxe3 {[%clk 0:00:14]} 44. fxe3 {[%clk 0:00:17]}  Rf6 {[%clk 0:00:14]} 45. Re2 {[%clk 0:00:12]}  Rf3 {[%clk 0:00:14]} 46. Kh6 {[%clk 0:00:10]}  Rh3+ {[%clk 0:00:14]} 47. Kg7 {[%clk 0:00:10]}  Nc6 {[%clk 0:00:14]} 48. Nb5 {[%clk 0:00:09]}  a4 {[%clk 0:00:13]} 49. g5 {[%clk 0:00:09]}  Ke4 {[%clk 0:00:12]} 50. Nd6+ {[%clk 0:00:08]}  Kd3 {[%clk 0:00:12]} 51. Re1 {[%clk 0:00:08]}  c3 {[%clk 0:00:12]} 52. Rd1+ {[%clk 0:00:08]}  Ke2 {[%clk 0:00:11]} 53. Rxd5 {[%clk 0:00:08]}  c2 {[%clk 0:00:12]} 54. Rc5 {[%clk 0:00:08]}  Kd1 {[%clk 0:00:09]} 55. Nf7 {[%clk 0:00:05]}  c1=Q {[%clk 0:00:09]} 56. Rxc1+ {[%clk 0:00:05]}  Kxc1 {[%clk 0:00:10]} 57. Nh6 {[%clk 0:00:06]}  Ne5 {[%clk 0:00:09]} 58. Kxh7 {[%clk 0:00:06]}  Nf3 {[%clk 0:00:09]} 59. g6 {[%clk 0:00:05]}  Ng5+ {[%clk 0:00:08]} 60. Kg7 {[%clk 0:00:06]}  Kb2 {[%clk 0:00:08]} 61. Nf5 {[%clk 0:00:05]}  Kxa2 {[%clk 0:00:08]} 62. Kf6 {[%clk 0:00:05]}  Ne4+ {[%clk 0:00:08]} 63. Ke5 {[%clk 0:00:05]}  Rh1 {[%clk 0:00:04]} 64. Kxe4 {[%clk 0:00:05]}  Rg1 {[%clk 0:00:04]} 65. g7 {[%clk 0:00:04]}  a3 {[%clk 0:00:05]} 66. Ke5 {[%clk 0:00:02]}  Kb1 {[%clk 0:00:05]} 67. Kf6 {[%clk 0:00:02]}  a2 {[%clk 0:00:05]} 68. Nd4 {[%clk 0:00:01]}  a1=Q {[%clk 0:00:06]} 0-1


[Site "https://www.chess.com"]

[Event "Titled Tuesday Blitz April 11 Late 2023"]
[White "Sargsyan, Shant"]
[Black "Remizov, Yaroslav"]
[WhiteFideId "13306766"]
[BlackFideId "34134015"]
[WhiteElo "2628"]
[BlackElo "2412"]
[Result "1-0"]
[Round "11"]
[TimeControl "180+2"]
[Date "2023.04.11"]
[WhiteClock "0:00:30"]
[BlackClock "0:00:01"]

1. g3 {[%clk 0:03:00]}  d5 {[%clk 0:02:44]} 2. Nf3 {[%clk 0:02:59]}  Nf6 {[%clk 0:02:43]} 3. Bg2 {[%clk 0:02:59]}  Bg4 {[%clk 0:02:43]} 4. c4 {[%clk 0:02:59]}  e6 {[%clk 0:02:36]} 5. Qb3 {[%clk 0:02:59]}  Nc6 {[%clk 0:02:20]} 6. cxd5 {[%clk 0:02:55]}  Qxd5 {[%clk 0:02:12]} 7. Qa4 {[%clk 0:02:36]}  O-O-O {[%clk 0:01:47]} 8. Nc3 {[%clk 0:02:34]}  Qa5 {[%clk 0:01:39]} 9. Qxa5 {[%clk 0:02:32]}  Nxa5 {[%clk 0:01:40]} 10. Ne5 {[%clk 0:02:33]}  Bh5 {[%clk 0:01:41]} 11. Rb1 {[%clk 0:02:22]}  Bd6 {[%clk 0:01:38]} 12. b4 {[%clk 0:02:22]}  Bxe5 {[%clk 0:01:32]} 13. bxa5 {[%clk 0:02:22]}  Nd5 {[%clk 0:01:29]} 14. Bb2 {[%clk 0:02:20]}  Bg6 {[%clk 0:01:19]} 15. Rc1 {[%clk 0:02:01]}  Nxc3 {[%clk 0:01:18]} 16. Bxc3 {[%clk 0:02:01]}  Bxc3 {[%clk 0:01:18]} 17. Rxc3 {[%clk 0:02:02]}  Rd6 {[%clk 0:01:18]} 18. d3 {[%clk 0:02:01]}  Ra6 {[%clk 0:01:07]} 19. Rc5 {[%clk 0:01:54]}  b6 {[%clk 0:00:51]} 20. axb6 {[%clk 0:01:53]}  axb6 {[%clk 0:00:52]} 21. Rc2 {[%clk 0:01:54]}  Rd8 {[%clk 0:00:42]} 22. h4 {[%clk 0:01:52]}  f6 {[%clk 0:00:40]} 23. h5 {[%clk 0:01:48]}  Bf7 {[%clk 0:00:37]} 24. Rh4 {[%clk 0:01:46]}  e5 {[%clk 0:00:37]} 25. Bc6 {[%clk 0:01:21]}  Bxa2 {[%clk 0:00:17]} 26. Rg4 {[%clk 0:01:16]}  Bb3 {[%clk 0:00:09]} 27. Rc3 {[%clk 0:01:11]}  Bd5 {[%clk 0:00:09]} 28. Rxg7 {[%clk 0:01:07]}  Bxc6 {[%clk 0:00:07]} 29. Rxc6 {[%clk 0:01:08]}  Ra7 {[%clk 0:00:05]} 30. Rxh7 {[%clk 0:01:03]}  e4 {[%clk 0:00:04]} 31. Kd2 {[%clk 0:00:56]}  exd3 {[%clk 0:00:04]} 32. exd3 {[%clk 0:00:57]}  Kb8 {[%clk 0:00:02]} 33. Rxf6 {[%clk 0:00:55]}  Ra2+ {[%clk 0:00:03]} 34. Ke3 {[%clk 0:00:53]}  Ra3 {[%clk 0:00:03]} 35. Kf3 {[%clk 0:00:52]}  Raxd3+ {[%clk 0:00:03]} 36. Kg2 {[%clk 0:00:52]}  b5 {[%clk 0:00:03]} 37. h6 {[%clk 0:00:50]}  b4 {[%clk 0:00:04]} 38. Rhf7 {[%clk 0:00:48]}  b3 {[%clk 0:00:03]} 39. Rf8 {[%clk 0:00:40]}  b2 {[%clk 0:00:02]} 40. h7 {[%clk 0:00:41]}  b1=Q {[%clk 0:00:02]} 41. h8=Q {[%clk 0:00:42]}  Qd1 {[%clk 0:00:01]} 42. Rf3 {[%clk 0:00:30]} 1-0


[Site "https://www.chess.com"]

[Event "Titled Tuesday Blitz April 11 Late 2023"]
[White "Nakamura, Hikaru"]
[Black "Mekhitarian, Krikor Sevag"]
[WhiteFideId "2016192"]
[BlackFideId "2107660"]
[WhiteElo "2885"]
[BlackElo "2604"]
[Result "1-0"]
[Round "11"]
[TimeControl "180+2"]
[Date "2023.04.11"]
[WhiteClock "0:02:08"]
[BlackClock "0:00:08"]

1. e4 {[%clk 0:03:00]}  c5 {[%clk 0:02:58]} 2. c3 {[%clk 0:03:01]}  Nf6 {[%clk 0:02:57]} 3. e5 {[%clk 0:03:01]}  Nd5 {[%clk 0:02:57]} 4. d4 {[%clk 0:03:02]}  cxd4 {[%clk 0:02:57]} 5. Qxd4 {[%clk 0:03:03]}  e6 {[%clk 0:02:56]} 6. Nf3 {[%clk 0:03:03]}  Nc6 {[%clk 0:02:57]} 7. Qe4 {[%clk 0:03:03]}  Nde7 {[%clk 0:02:55]} 8. Na3 {[%clk 0:03:01]}  Ng6 {[%clk 0:02:46]} 9. Nc4 {[%clk 0:03:00]}  d5 {[%clk 0:02:43]} 10. exd6 {[%clk 0:03:00]}  Bxd6 {[%clk 0:02:44]} 11. Bg5 {[%clk 0:02:59]}  Qc7 {[%clk 0:02:24]} 12. Rd1 {[%clk 0:02:55]}  Be7 {[%clk 0:02:01]} 13. Bxe7 {[%clk 0:02:52]}  Kxe7 {[%clk 0:01:56]} 14. Ne3 {[%clk 0:02:53]}  Kf8 {[%clk 0:01:36]} 15. h4 {[%clk 0:02:49]}  Qf4 {[%clk 0:01:29]} 16. Qxf4 {[%clk 0:02:40]}  Nxf4 {[%clk 0:01:29]} 17. h5 {[%clk 0:02:40]}  Ke7 {[%clk 0:01:06]} 18. Bc4 {[%clk 0:02:30]}  e5 {[%clk 0:01:02]} 19. g3 {[%clk 0:02:28]}  Ne6 {[%clk 0:01:00]} 20. Nd5+ {[%clk 0:02:28]}  Kf8 {[%clk 0:00:57]} 21. h6 {[%clk 0:02:28]}  f6 {[%clk 0:00:53]} 22. Nh4 {[%clk 0:02:21]}  Na5 {[%clk 0:00:44]} 23. Be2 {[%clk 0:02:18]}  Kf7 {[%clk 0:00:34]} 24. Nf5 {[%clk 0:02:13]}  b6 {[%clk 0:00:13]} 25. hxg7 {[%clk 0:02:10]}  Nxg7 {[%clk 0:00:12]} 26. Nd6+ {[%clk 0:02:11]}  Ke6 {[%clk 0:00:10]} 27. Nc7+ {[%clk 0:02:10]}  Ke7 {[%clk 0:00:08]} 28. Nxa8 {[%clk 0:02:08]} 1-0


[Site "https://www.chess.com"]

[Event "Titled Tuesday Blitz April 11 Late 2023"]
[White "Riehle, Marco"]
[Black "Sarana, Alexey"]
[WhiteFideId "12904392"]
[BlackFideId "24133795"]
[WhiteElo "2462"]
[BlackElo "2714"]
[Result "1-0"]
[Round "11"]
[TimeControl "180+2"]
[Date "2023.04.11"]
[WhiteClock "0:00:34"]
[BlackClock "0:00:04"]

1. e4 {[%clk 0:03:00]}  c5 {[%clk 0:03:00]} 2. a3 {[%clk 0:03:00]}  Nf6 {[%clk 0:02:59]} 3. e5 {[%clk 0:02:56]}  Nd5 {[%clk 0:02:59]} 4. c4 {[%clk 0:02:56]}  Nc7 {[%clk 0:02:58]} 5. b4 {[%clk 0:02:56]}  d6 {[%clk 0:02:57]} 6. exd6 {[%clk 0:02:56]}  exd6 {[%clk 0:02:58]} 7. Bb2 {[%clk 0:02:56]}  Nc6 {[%clk 0:02:57]} 8. Nf3 {[%clk 0:02:54]}  Bg4 {[%clk 0:02:55]} 9. Be2 {[%clk 0:02:54]}  Be7 {[%clk 0:02:49]} 10. Bxg7 {[%clk 0:02:53]}  Rg8 {[%clk 0:02:49]} 11. Bc3 {[%clk 0:02:53]}  Ne6 {[%clk 0:02:46]} 12. g3 {[%clk 0:02:49]}  Bf6 {[%clk 0:02:45]} 13. h3 {[%clk 0:02:43]}  Bf5 {[%clk 0:02:42]} 14. b5 {[%clk 0:02:27]}  Ncd4 {[%clk 0:02:41]} 15. Bxd4 {[%clk 0:02:26]}  Bxd4 {[%clk 0:02:31]} 16. Nc3 {[%clk 0:02:24]}  Qf6 {[%clk 0:02:26]} 17. Qb3 {[%clk 0:02:16]}  O-O-O {[%clk 0:02:11]} 18. Nd5 {[%clk 0:02:10]}  Qh8 {[%clk 0:02:03]} 19. O-O-O {[%clk 0:01:56]}  Rge8 {[%clk 0:01:46]} 20. Bd3 {[%clk 0:01:52]}  Bxd3 {[%clk 0:01:36]} 21. Qxd3 {[%clk 0:01:51]}  Bxf2 {[%clk 0:01:36]} 22. Kb1 {[%clk 0:01:45]}  Bxg3 {[%clk 0:01:35]} 23. Rhf1 {[%clk 0:01:36]}  Kb8 {[%clk 0:01:29]} 24. b6 {[%clk 0:01:35]}  axb6 {[%clk 0:01:27]} 25. Qb3 {[%clk 0:01:30]}  Rc8 {[%clk 0:01:22]} 26. Nxb6 {[%clk 0:01:29]}  Rc6 {[%clk 0:01:22]} 27. Nd5 {[%clk 0:01:19]}  f5 {[%clk 0:01:10]} 28. Ka2 {[%clk 0:01:09]}  Qg7 {[%clk 0:00:57]} 29. Rb1 {[%clk 0:01:07]}  Nd8 {[%clk 0:00:46]} 30. Rg1 {[%clk 0:01:02]}  Re2 {[%clk 0:00:34]} 31. Qd3 {[%clk 0:01:02]}  Rf2 {[%clk 0:00:31]} 32. Qxf5 {[%clk 0:00:59]}  Ra6 {[%clk 0:00:14]} 33. Rb3 {[%clk 0:00:53]}  h5 {[%clk 0:00:12]} 34. h4 {[%clk 0:00:41]}  Ra4 {[%clk 0:00:12]} 35. Rxg3 {[%clk 0:00:39]}  Qxg3 {[%clk 0:00:10]} 36. Qd7 {[%clk 0:00:40]}  Ra6 {[%clk 0:00:04]} 37. Qxd8+ {[%clk 0:00:39]}  Ka7 {[%clk 0:00:04]} 38. Qc7 {[%clk 0:00:34]} 1-0


[Site "https://www.chess.com"]

[Event "Titled Tuesday Blitz April 11 Late 2023"]
[White "Baskakov, Egor"]
[Black "Kamsky, Gata"]
[WhiteFideId "24197866"]
[BlackFideId "2000024"]
[WhiteElo "2212"]
[BlackElo "2660"]
[Result "1/2-1/2"]
[Round "11"]
[TimeControl "180+2"]
[Date "2023.04.11"]
[WhiteClock "0:00:29"]
[BlackClock "0:00:18"]

1. e4 {[%clk 0:03:00]}  g6 {[%clk 0:02:56]} 2. g3 {[%clk 0:02:58]}  Bg7 {[%clk 0:02:56]} 3. Bg2 {[%clk 0:02:59]}  d6 {[%clk 0:02:54]} 4. Ne2 {[%clk 0:02:59]}  Nf6 {[%clk 0:02:51]} 5. h3 {[%clk 0:02:58]}  c5 {[%clk 0:02:48]} 6. d4 {[%clk 0:02:58]}  cxd4 {[%clk 0:02:46]} 7. Nxd4 {[%clk 0:02:59]}  Nc6 {[%clk 0:02:44]} 8. Ne2 {[%clk 0:03:00]}  O-O {[%clk 0:02:40]} 9. Nbc3 {[%clk 0:03:00]}  Be6 {[%clk 0:02:40]} 10. O-O {[%clk 0:02:53]}  Rc8 {[%clk 0:02:39]} 11. Nd5 {[%clk 0:02:50]}  b5 {[%clk 0:02:34]} 12. Be3 {[%clk 0:02:47]}  Nd7 {[%clk 0:02:31]} 13. c3 {[%clk 0:02:44]}  Nb6 {[%clk 0:02:17]} 14. Nxb6 {[%clk 0:02:39]}  axb6 {[%clk 0:02:17]} 15. Nd4 {[%clk 0:02:40]}  Bc4 {[%clk 0:02:05]} 16. Nxc6 {[%clk 0:02:31]}  Rxc6 {[%clk 0:02:03]} 17. Re1 {[%clk 0:02:31]}  Qc8 {[%clk 0:01:57]} 18. Bd4 {[%clk 0:02:23]}  e5 {[%clk 0:01:26]} 19. Be3 {[%clk 0:02:23]}  Be6 {[%clk 0:01:24]} 20. Kh2 {[%clk 0:02:20]}  Qd7 {[%clk 0:01:18]} 21. Qd2 {[%clk 0:02:13]}  Ra8 {[%clk 0:01:17]} 22. a3 {[%clk 0:02:13]}  Bb3 {[%clk 0:01:14]} 23. f4 {[%clk 0:02:11]}  exf4 {[%clk 0:01:12]} 24. Bxf4 {[%clk 0:02:12]}  Re8 {[%clk 0:01:06]} 25. e5 {[%clk 0:01:50]}  d5 {[%clk 0:01:04]} 26. Re3 {[%clk 0:01:44]}  Rce6 {[%clk 0:01:00]} 27. Rae1 {[%clk 0:01:40]}  Qe7 {[%clk 0:00:59]} 28. h4 {[%clk 0:01:37]}  h6 {[%clk 0:00:53]} 29. Rd3 {[%clk 0:00:49]}  Bxe5 {[%clk 0:00:52]} 30. Bxe5 {[%clk 0:00:40]}  Rxe5 {[%clk 0:00:51]} 31. Rxe5 {[%clk 0:00:41]}  Qxe5 {[%clk 0:00:52]} 32. Bxd5 {[%clk 0:00:41]}  Bc4 {[%clk 0:00:39]} 33. Bxc4 {[%clk 0:00:34]}  bxc4 {[%clk 0:00:39]} 34. Rd8 {[%clk 0:00:34]}  b5 {[%clk 0:00:34]} 35. Rxe8+ {[%clk 0:00:31]}  Qxe8 {[%clk 0:00:34]} 36. Kg2 {[%clk 0:00:28]}  h5 {[%clk 0:00:34]} 37. Kf2 {[%clk 0:00:28]}  Qe4 {[%clk 0:00:33]} 38. Qe3 {[%clk 0:00:28]}  Qc2+ {[%clk 0:00:32]} 39. Qe2 {[%clk 0:00:28]}  Qf5+ {[%clk 0:00:32]} 40. Qf3 {[%clk 0:00:28]}  Qc2+ {[%clk 0:00:32]} 41. Qe2 {[%clk 0:00:28]}  Qf5+ {[%clk 0:00:19]} 42. Qf3 {[%clk 0:00:28]}  Qc2+ {[%clk 0:00:18]} 43. Qe2 {[%clk 0:00:29]} 1/2-1/2


[Site "https://www.chess.com"]

[Event "Titled Tuesday Blitz April 11 Late 2023"]
[White "Kosteniuk, Alexandra"]
[Black "Keymer, Vincent"]
[WhiteFideId "4128125"]
[BlackFideId "12940690"]
[WhiteElo "2453"]
[BlackElo "2651"]
[Result "0-1"]
[Round "11"]
[TimeControl "180+2"]
[Date "2023.04.11"]
[WhiteClock "0:00:07"]
[BlackClock "0:00:12"]

1. e4 {[%clk 0:03:00]}  c6 {[%clk 0:02:59]} 2. Nc3 {[%clk 0:03:00]}  d5 {[%clk 0:03:00]} 3. Nf3 {[%clk 0:03:00]}  dxe4 {[%clk 0:03:01]} 4. Nxe4 {[%clk 0:03:01]}  Nf6 {[%clk 0:03:01]} 5. Qe2 {[%clk 0:03:02]}  Nxe4 {[%clk 0:03:01]} 6. Qxe4 {[%clk 0:03:02]}  Nd7 {[%clk 0:03:02]} 7. Bc4 {[%clk 0:02:59]}  Nf6 {[%clk 0:03:02]} 8. Ne5 {[%clk 0:02:59]}  e6 {[%clk 0:03:01]} 9. Qe2 {[%clk 0:02:58]}  b5 {[%clk 0:03:02]} 10. Bd3 {[%clk 0:02:54]}  Qc7 {[%clk 0:03:02]} 11. a4 {[%clk 0:02:50]}  Bd6 {[%clk 0:03:00]} 12. Nxc6 {[%clk 0:02:45]}  b4 {[%clk 0:03:00]} 13. Nd4 {[%clk 0:02:24]}  a6 {[%clk 0:03:00]} 14. h3 {[%clk 0:02:18]}  O-O {[%clk 0:02:33]} 15. O-O {[%clk 0:02:12]}  Re8 {[%clk 0:01:46]} 16. Bc4 {[%clk 0:01:42]}  e5 {[%clk 0:01:40]} 17. Nf3 {[%clk 0:01:35]}  e4 {[%clk 0:01:37]} 18. Ng5 {[%clk 0:01:30]}  Re7 {[%clk 0:01:17]} 19. d3 {[%clk 0:01:19]}  Bb7 {[%clk 0:01:03]} 20. Be3 {[%clk 0:01:04]}  Qc6 {[%clk 0:00:23]} 21. Nxe4 {[%clk 0:00:38]}  Nxe4 {[%clk 0:00:21]} 22. dxe4 {[%clk 0:00:38]}  Qxe4 {[%clk 0:00:16]} 23. Qg4 {[%clk 0:00:36]}  Qe5 {[%clk 0:00:16]} 24. g3 {[%clk 0:00:12]}  h5 {[%clk 0:00:16]} 25. Qd4 {[%clk 0:00:11]}  Qf5 {[%clk 0:00:16]} 26. Rfd1 {[%clk 0:00:07]}  Qxh3 {[%clk 0:00:14]} 27. Bd5 {[%clk 0:00:06]}  Bxg3 {[%clk 0:00:12]} 28. Bxb7 {[%clk 0:00:06]}  Bh2+ {[%clk 0:00:12]} 29. Kh1 {[%clk 0:00:06]}  Be5+ {[%clk 0:00:12]} 30. Kg1 {[%clk 0:00:06]}  Bxd4 {[%clk 0:00:13]} 31. Rxd4 {[%clk 0:00:07]}  Rxb7 {[%clk 0:00:12]} 32. Rad1 {[%clk 0:00:07]}  Re8 {[%clk 0:00:12]} 0-1


[Site "https://www.chess.com"]